bitfinex-derivatives/quotes_SOLF0:USTF0_20250714
["timestamp","ask_amount","ask_price","bid_price","bid_amount"]
[1752463611216,182.24006589,166.45,166.39,3.26]
[1752463611723,6.0067,166.43,166.39,3.26]
[1752463612016,182.24006589,166.45,166.39,3.26]
[1752463612422,6.0063,166.44,166.39,3.26]
[1752463612724,182.24006589,166.45,166.39,3.26]
[1752463612922,184.14716237,166.45,166.39,3.26]
[1752463613825,4.76716237,166.43,166.31,3.26]
[1752463614025,4.76716237,166.43,166.34,3.26]
[1752463614424,6.0068,166.42,166.37,3.26]
[1752463614924,6.0068,166.42,166.37,9.2685]
[1752463615219,184.04716237,166.46,166.38,3.26]
[1752463616026,6.0057,166.45,166.4,6.0072]
[1752463616221,6.0057,166.45,166.41,3.26]
[1752463616425,6.0057,166.45,166.42,5.90822162]
[1752463616722,6.0057,166.45,166.41,3.26]
[1752463616723,190.05256237,166.46,166.43,5.90822162]
[1752463616921,190.05256237,166.46,166.45,3.26]
[1752463617120,190.05256237,166.46,166.45,9.16822162]
[1752463617626,185.2854,166.46,166.45,9.16822162]
[1752463617924,179.28,166.46,166.45,9.16822162]
[1752463620228,190.05246237,166.46,166.45,5.90822162]
[1752463620434,184.04716237,166.46,166.45,5.90822162]
[1752463620728,190.05246237,166.46,166.4,6.0072]
[1752463620926,190.05246237,166.46,166.44,3.35]
[1752463621424,190.05246237,166.46,166.42,3.35]
[1752463621619,190.05246237,166.46,166.43,9.2552546]
[1752463621821,190.05246237,166.46,166.44,5.9052546]
[1752463622125,190.05246237,166.46,166.44,3.35]
[1752463622429,6.0057,166.45,166.4,3.35]
[1752463622727,184.04716237,166.46,166.42,3.35]
[1752463622927,184.04716237,166.46,166.43,5.90422817]
[1752463623127,184.04716237,166.46,166.43,3.35]
[1752463623326,184.04716237,166.46,166.44,5.90483237]
[1752463623622,184.04716237,166.46,166.35,4.76716237]
[1752463623829,184.04716237,166.46,166.38,6.0079]
[1752463624022,184.04716237,166.46,166.4,3.35]
[1752463624224,184.04716237,166.46,166.35,4.76716237]
[1752463624225,184.04716237,166.46,166.41,5.90522337]
[1752463624428,184.04716237,166.46,166.42,5.90522337]
[1752463624429,6.0067,166.43,166.42,5.90522337]
[1752463625120,6.0067,166.43,166.42,9.25522337]
[1752463625925,10.77326237,166.44,166.42,9.25522337]
[1752463626124,4.76716237,166.45,166.43,9.25522337]
[1752463626328,184.04716237,166.46,166.44,3.35]
[1752463626622,184.04716237,166.46,166.39,3.35]
[1752463626931,4.76716237,166.44,166.41,3.35]
[1752463627119,4.76716237,166.44,166.42,9.25522829]
[1752463627323,4.76716237,166.44,166.42,3.35]
[1752463627530,10.77316237,166.44,166.43,3.35]
[1752463627824,4.76716237,166.44,166.41,3.35]
[1752463628123,4.76716237,166.42,166.29,519.3]
[1752463628325,179.1,166.41,166.32,3.35]
[1752463628520,179.1,166.41,166.34,3.35]
[1752463628730,4.76716237,166.4,166.36,3.35]
[1752463628931,4.76716237,166.4,166.37,9.25640826]
[1752463629125,179.1,166.41,166.38,5.90640826]
[1752463629330,4.76716237,166.38,166.32,3.35]
[1752463629528,179.08,166.37,166.34,3.35]
[1752463629832,179.08,166.37,166.36,3.35]
[1752463630025,185.0889,166.37,166.36,9.2611372]
[1752463630419,179.08,166.37,166.36,9.2611372]
[1752463632527,179.08,166.37,166.36,3.35]
[1752463632734,4.76716237,166.41,166.37,3.35]
[1752463632934,179.08,166.4,166.39,3.35]
[1752463633124,179.08,166.4,166.39,9.25998895]
[1752463634230,185.0875,166.4,166.39,3.35]
[1752463634431,185.0875,166.4,166.39,9.2614864]
[1752463635532,179.08,166.4,166.39,9.2614864]
[1752463636827,6.007,166.42,166.39,9.2614864]
[1752463637027,181.92138408,166.41,166.4,9.2614864]
[1752463638332,181.92138408,166.41,166.4,3.35]
[1752463638627,181.92138408,166.41,166.4,9.26511471]
[1752463639634,179.06,166.41,166.4,9.26511471]
[1752463639833,179.06,166.41,166.4,3.35]
[1752463643036,185.0671,166.41,166.4,3.35]
[1752463643337,179.06,166.41,166.4,3.35]
[1752463644635,185.0671,166.41,166.4,3.35]
[1752463646839,185.0671,166.41,166.4,9.28479892]
[1752463649134,185.0671,166.41,166.4,5.93479892]
[1752463649933,185.0671,166.41,166.4,9.298554]
[1752463650139,185.0671,166.41,166.4,9.29837345]
[1752463650636,185.0671,166.41,166.4,9.30196209]
[1752463651241,185.0671,166.41,166.4,5.95196209]
[1752463652340,185.0671,166.41,166.4,9.20196209]
[1752463652636,185.0671,166.41,166.4,3.25]
[1752463652834,185.0671,166.41,166.4,9.20721909]
[1752463653440,179.06,166.41,166.4,9.20721909]
[1752463653842,181.92138408,166.41,166.4,9.20721909]
[1752463654043,181.92138408,166.41,166.4,5.95721909]
[1752463654347,187.92848408,166.41,166.4,5.95721909]
[1752463654943,187.92848408,166.41,166.4,9.20721909]
[1752463655342,187.92848408,166.41,166.4,5.95721909]
[1752463656532,6.0086,166.37,166.36,3.25]
[1752463656739,8.86998408,166.37,166.36,3.25]
[1752463657045,2.86138408,166.37,166.3,3.25]
[1752463657242,6.009,166.36,166.3,6.0109]
[1752463657442,6.009,166.36,166.31,3.25]
[1752463657639,2.86138408,166.37,166.31,3.25]
[1752463658946,6.0089,166.36,166.29,7.79070303]
[1752463659142,6.0089,166.36,166.3,3.25]
[1752463659547,6.0093,166.35,166.3,3.25]
[1752463659744,2.86138408,166.35,166.3,3.25]
[1752463659945,2.86138408,166.37,166.3,3.25]
[1752463660141,8.87028408,166.37,166.3,6.011]
[1752463660447,8.87028408,166.37,166.31,3.25]
[1752463661243,8.87028408,166.37,166.32,3.25]
[1752463661445,2.86138408,166.38,166.32,3.25]
[1752463661950,8.86988408,166.38,166.33,3.25]
[1752463663445,2.86138408,166.38,166.34,3.25]
[1752463663649,6.0079,166.39,166.34,3.25]
[1752463663951,18.0199,166.52,166.34,6.11138408]
[1752463663952,6.71147424,166.44,166.34,6.11138408]
[1752463664145,6.71147424,166.44,166.28,153.22751747]
[1752463664146,6.71147424,166.44,166.37,3.25]
[1752463664354,188.47285832,166.46,166.39,3.25]
[1752463664548,2.86138408,166.44,166.39,3.25]
[1752463665048,6.0065,166.43,166.39,3.25]
[1752463666753,8.86748408,166.44,166.39,3.25]
[1752463668657,6.0065,166.43,166.41,3.25]
[1752463668951,6.0065,166.43,166.42,9.27120875]
[1752463669350,6.0062,166.44,166.42,9.27120875]
[1752463669553,8.86758408,166.44,166.43,9.27120875]
[1752463669761,8.86758408,166.44,166.43,6.02120875]
[1752463670762,6.0062,166.44,166.43,6.02120875]
[1752463670958,8.86758408,166.44,166.43,6.02120875]
[1752463672460,8.86758408,166.44,166.43,9.27120875]
[1752463673053,8.86758408,166.44,166.43,6.02120875]
[1752463675961,6.0066,166.43,166.41,3.25]
[1752463676158,6.0066,166.43,166.42,9.21425126]
[1752463676350,2.86138408,166.44,166.42,5.96425126]
[1752463676556,6.0068,166.42,166.41,3.25]
[1752463676751,8.86818408,166.42,166.41,9.21473666]
[1752463677462,6.0068,166.42,166.41,9.21473666]
[1752463677662,181.64138408,166.42,166.41,9.21473666]
[1752463678559,187.64818408,166.42,166.41,5.96473666]
[1752463679355,187.64818408,166.42,166.41,9.21473666]
[1752463679557,187.64818408,166.42,166.41,5.96473666]
[1752463680661,8.86788408,166.43,166.42,3.54]
[1752463680860,187.60788408,166.43,166.42,9.50473666]
[1752463681064,2.86138408,166.43,166.42,9.50473666]
[1752463681263,181.60138408,166.43,166.42,9.50473666]
[1752463681565,2.86138408,166.43,166.42,9.50473666]
[1752463681759,178.74,166.43,166.42,5.96473666]
[1752463681962,181.60138408,166.43,166.42,9.50473666]
[1752463682166,178.74,166.43,166.42,9.50473666]
[1752463682762,178.74,166.43,166.42,3.54]
[1752463683262,2.86138408,166.45,166.42,3.54]
[1752463683469,178.72,166.44,166.42,3.54]
[1752463683873,178.72,166.45,166.42,3.54]
[1752463684069,178.72,166.45,166.42,9.5468]
[1752463684273,178.72,166.45,166.43,3.54]
[1752463684779,178.72,166.45,166.44,6.02047413]
[1752463685073,178.72,166.45,166.44,9.56047413]
[1752463686266,214.25877135,166.5,166.45,3.54]
[1752463686470,3.52,166.48,166.47,3.54]
[1752463686668,3.52,166.48,166.47,9.56047413]
[1752463686872,9.5246,166.48,166.47,9.56047413]
[1752463687073,3.52,166.48,166.47,9.56047413]
[1752463687771,6.71147424,166.55,166.47,6.02047413]
[1752463687971,3.52,166.49,166.48,6.02047413]
[1752463688572,2.86138408,166.5,166.48,9.56047413]
[1752463688771,6.38138408,166.5,166.49,9.56047413]
[1752463689275,12.38528408,166.5,166.49,6.02047413]
[1752463689872,12.38528408,166.5,166.46,3.54]
[1752463689873,3.52,166.49,166.46,3.54]
[1752463690071,3.52,166.46,166.4,3.54]
[1752463690271,182.16,166.46,166.4,3.54]
[1752463690968,182.16,166.46,166.42,3.54]
[1752463690969,178.64,166.46,166.42,3.54]
[1752463691773,178.64,166.46,166.42,9.5467]
[1752463692174,178.64,166.46,166.43,3.54]
[1752463692774,184.6453,166.46,166.43,3.54]
[1752463693179,178.64,166.46,166.43,3.54]
[1752463693777,178.64,166.46,166.43,6.40138408]
[1752463693974,178.64,166.46,166.43,2.86138408]
[1752463694176,184.98138408,166.49,166.44,3.54]
[1752463694376,9.5249,166.48,166.44,3.54]
[1752463695374,3.52,166.48,166.44,9.546]
[1752463695677,178.58,166.5,166.45,2.86138408]
[1752463695878,178.58,166.5,166.46,9.5453]
[1752463696079,178.58,166.5,166.46,6.0053]
[1752463696278,182.1,166.5,166.47,3.54]
[1752463696581,188.1039,166.5,166.47,3.54]
[1752463697579,182.1,166.5,166.47,3.54]
[1752463698779,188.1039,166.5,166.47,3.54]
[1752463698981,182.1,166.5,166.47,3.54]
[1752463699373,188.104,166.5,166.47,3.54]
[1752463699576,3.52,166.49,166.47,3.54]
[1752463700076,3.52,166.49,166.46,3.54]
[1752463700273,181.44138408,166.5,166.46,3.54]
[1752463700476,3.52,166.49,166.46,3.54]
[1752463701883,3.52,166.48,166.47,9.4734097]
[1752463702483,182.1,166.5,166.48,3.54]
[1752463702682,182.1,166.5,166.49,9.4734097]
[1752463702877,182.1,166.5,166.49,5.9334097]
[1752463703080,188.1039,166.5,166.49,5.9334097]
[1752463703774,3.52,166.48,166.33,4.92931895]
[1752463703979,3.52,166.45,166.33,4.92931895]
[1752463704179,3.52,166.45,166.4,6.0074]
[1752463704482,3.52,166.44,166.33,4.92931895]
[1752463704679,3.52,166.44,166.37,2.86138408]
[1752463705082,9.5262,166.44,166.33,4.92931895]
[1752463705297,3.52,166.43,166.37,2.86138408]
[1752463705778,3.52,166.42,166.38,3.54]
[1752463705985,9.5261,166.44,166.38,3.54]
[1752463706281,3.52,166.42,166.38,3.54]
[1752463706484,3.52,166.44,166.39,6.40138408]
[1752463706984,3.52,166.44,166.33,4.92931895]
[1752463706985,3.52,166.45,166.41,6.40138408]
[1752463707177,3.52,166.45,166.42,3.54]
[1752463709285,3.52,166.47,166.44,3.54]
[1752463709586,3.52,166.46,166.45,3.54]
[1752463709783,3.52,166.45,166.42,3.54]
[1752463709980,3.52,166.44,166.43,3.54]
[1752463711677,3.54,166.47,166.43,3.54]
[1752463711885,181.32138408,166.5,166.41,2.86138408]
[1752463712085,3.54,166.49,166.42,3.55]
[1752463712493,3.54,166.49,166.43,3.55]
[1752463713794,9.5443,166.49,166.43,9.5561]
[1752463714094,3.54,166.48,166.44,3.55]
[1752463714391,6.0043,166.49,166.45,3.55]
[1752463714392,3.54,166.49,166.45,3.55]
[1752463714693,3.54,166.48,166.45,3.55]
[1752463715191,3.54,166.48,166.46,3.55]
[1752463715490,8.54,166.53,166.47,3.55]
[1752463715690,5.0,166.53,166.48,14.91820191]
[1752463715886,3.54,166.52,166.49,6.05231783]
[1752463716190,5.0,166.53,166.5,12.4990715]
[1752463716391,5.0,166.53,166.51,8.9490715]
[1752463716694,5.0,166.53,166.52,8.9490715]
[1752463716992,8.54,166.53,166.52,12.4990715]
[1752463717192,8.54,166.53,166.52,8.9490715]
[1752463717994,8.54,166.53,166.52,12.4990715]
[1752463718195,8.54,166.53,166.52,18.61128189]
[1752463718391,5.0,166.53,166.52,18.61128189]
[1752463718590,3.54,166.61,166.52,17.90813633]
[1752463718793,3.54,166.58,166.53,15.04675225]
[1752463718996,3.54,166.58,166.54,15.04675225]
[1752463719195,3.54,166.57,166.55,15.04526694]
[1752463719393,3.54,166.57,166.56,15.04526694]
[1752463719593,3.54,166.61,166.56,15.04526694]
[1752463719801,2.86138408,166.57,166.5,2.86138408]
[1752463719998,3.54,166.56,166.51,15.05990926]
[1752463720199,3.54,166.56,166.52,15.05990926]
[1752463720498,3.54,166.56,166.53,15.05990926]
[1752463720686,3.54,166.56,166.54,15.05990926]
[1752463720893,3.54,166.56,166.55,15.05990926]
[1752463721092,6.71147424,166.66,166.56,3.53]
[1752463721296,2.85264144,166.65,166.58,3.53]
[1752463721592,2.85264144,166.65,166.59,15.05108778]
[1752463721798,2.85264144,166.64,166.6,15.05108778]
[1752463721989,2.85264144,166.64,166.61,15.05108778]
[1752463722193,18.06,166.69,166.57,6.38264144]
[1752463722194,18.06,166.69,166.62,12.15989594]
[1752463722396,2.85264144,166.64,166.63,12.15564858]
[1752463723297,3.54,166.63,166.57,3.53]
[1752463723599,178.32,166.62,166.59,3.55]
[1752463723794,181.86,166.62,166.61,3.55]
[1752463723995,181.86,166.62,166.61,2.88112786]
[1752463724300,3.54,166.62,166.61,2.88112786]
[1752463724498,3.54,166.62,166.61,6.43112786]
[1752463725000,178.28,166.63,166.61,6.43112786]
[1752463725199,181.82,166.63,166.62,2.88112786]
[1752463725900,3.54,166.63,166.62,2.88112786]
[1752463726099,521.75264144,166.66,166.63,3.55]
[1752463726100,178.28,166.64,166.63,3.55]
[1752463726301,178.28,166.64,166.63,6.42414809]
[1752463726496,181.82,166.64,166.63,6.42414809]
[1752463726696,181.82,166.64,166.63,3.55]
[1752463727494,181.82,166.64,166.61,3.55]
[1752463727699,3.54,166.64,166.62,6.42317596]
[1752463727895,181.78,166.64,166.62,3.55]
[1752463728098,3.54,166.64,166.62,3.55]
[1752463728301,3.54,166.63,166.61,3.55]
[1752463728605,3.54,166.63,166.62,3.55]
[1752463729803,3.54,166.63,166.61,3.55]
[1752463729998,3.54,166.63,166.62,3.55]
[1752463730702,178.24,166.64,166.62,3.55]
[1752463730901,181.78,166.64,166.63,3.55]
[1752463731102,187.7788,166.64,166.63,3.55]
[1752463731303,181.78,166.64,166.63,3.55]
[1752463731802,187.7788,166.64,166.61,3.55]
[1752463732002,187.7788,166.64,166.62,3.55]
[1752463732003,3.54,166.63,166.62,3.55]
[1752463734306,178.24,166.64,166.6,3.55]
[1752463734507,3.54,166.62,166.6,3.55]
[1752463734908,3.54,166.63,166.57,3.55]
[1752463735107,3.54,166.63,166.58,11.99767648]
[1752463735305,3.54,166.63,166.59,11.99767648]
[1752463735508,5.9996,166.62,166.57,3.55]
[1752463735708,3.54,166.6,166.59,3.55]
[1752463735908,181.7,166.6,166.59,3.55]
[1752463736108,178.16,166.6,166.59,15.5469905]
[1752463737103,3.54,166.63,166.6,3.55]
[1752463737406,178.16,166.62,166.61,9.42973209]
[1752463737607,178.16,166.62,166.61,3.55]
[1752463737799,181.7,166.62,166.61,5.87820016]
[1752463738200,6.0006,166.6,166.57,3.55]
[1752463738410,3.54,166.59,166.58,12.00012715]
[1752463738606,3.54,166.59,166.58,15.55012715]
[1752463738799,3.54,166.59,166.58,15.55011583]
[1752463739204,3.54,166.59,166.58,12.00011583]
[1752463739406,3.54,166.64,166.59,3.55]
[1752463739606,3.54,166.62,166.59,3.55]
[1752463740001,3.54,166.62,166.6,5.87997594]
[1752463740207,3.54,166.62,166.59,3.55]
[1752463740407,3.29,166.61,166.6,15.32428207]
[1752463740814,178.14,166.63,166.6,15.32428207]
[1752463741012,3.29,166.62,166.61,5.87840442]
[1752463741311,3.29,166.61,166.59,3.33]
[1752463741509,5.9995,166.63,166.6,5.87881322]
[1752463741706,178.12,166.62,166.61,9.44485556]
[1752463741911,181.41,166.62,166.58,2.85264144]
[1752463742206,3.29,166.6,166.59,15.32422459]
[1752463742411,3.29,166.6,166.59,18.1905759]
[1752463742612,3.29,166.6,166.59,14.8605759]
[1752463742813,1.19,166.59,166.54,3.33]
[1752463743007,1.19,166.57,166.55,2.86755559]
[1752463743210,179.31,166.56,166.54,3.33]
[1752463743410,179.31,166.56,166.55,2.86810379]
[1752463743711,1.19,166.55,166.52,3.33]
[1752463743908,4.04264144,166.55,166.47,2.85264144]
[1752463744212,7.1927,166.54,166.48,12.2042209]
[1752463744415,6.0027,166.54,166.49,2.8696209]
[1752463744609,1.19,166.53,166.51,3.33]
[1752463744816,178.12,166.52,166.51,3.33]
[1752463745011,178.12,166.52,166.51,6.20020068]
[1752463747816,1.19,166.63,166.51,6.20020068]
[1752463748016,1.19,166.55,166.5,3.33]
[1752463748317,1.19,166.55,166.49,2.85264144]
[1752463748318,1.19,166.55,166.53,3.33]
[1752463748515,178.14,166.54,166.53,3.33]
[1752463748716,179.33,166.54,166.49,2.85264144]
[1752463748918,1.19,166.52,166.51,3.33]
[1752463749118,7.1932,166.52,166.51,2.86918018]
[1752463749520,1.19,166.52,166.45,3.33]
[1752463749719,1.19,166.52,166.47,3.33]
[1752463749921,178.14,166.51,166.49,3.33]
[1752463750219,178.14,166.51,166.5,6.20124708]
[1752463750413,518.74,166.56,166.52,3.33]
[1752463750717,1.19,166.53,166.52,3.33]
[1752463750917,1.19,166.54,166.52,3.33]
[1752463751112,1.19,166.54,166.53,3.33]
[1752463753423,1.19,166.54,166.47,3.33]
[1752463753617,1.19,166.52,166.48,6.20777395]
[1752463753816,7.1939,166.5,166.49,2.87777395]
[1752463754709,7.1939,166.5,166.44,2.85264144]
[1752463754911,7.1939,166.5,166.48,3.33]
[1752463755114,184.1436,166.51,166.45,3.33]
[1752463755315,185.3336,166.51,166.47,3.33]
[1752463755510,185.3336,166.51,166.49,3.33]
[1752463755716,178.14,166.51,166.45,9.3354]
[1752463755917,178.14,166.51,166.47,3.33]
[1752463756118,179.33,166.51,166.48,8.83712564]
[1752463756314,179.33,166.51,166.49,12.16712564]
[1752463756513,179.33,166.51,166.49,3.33]
[1752463757019,6.0039,166.5,166.49,3.33]
[1752463757322,1.19,166.49,166.47,3.33]
[1752463757519,1.19,166.49,166.48,8.84352662]
[1752463758220,7.1942,166.49,166.48,8.84352662]
[1752463758426,2.85264144,166.49,166.43,3.33]
[1752463758621,196.2,166.51,166.41,3.33]
[1752463758830,2.85264144,166.46,166.39,3.33]
[1752463759122,2.85264144,166.44,166.39,3.33]
[1752463759322,178.14,166.43,166.39,3.33]
[1752463760920,18.06,166.51,166.39,3.33]
[1752463760921,2.85264144,166.46,166.39,3.33]
[1752463761125,178.16,166.45,166.41,2.85264144]
[1752463761325,178.16,166.45,166.42,6.0066]
[1752463761528,6.0044,166.49,166.43,3.33]
[1752463761827,178.16,166.46,166.43,3.33]
[1752463762322,178.16,166.46,166.44,3.33]
[1752463762522,178.16,166.47,166.44,3.33]
[1752463763325,178.16,166.47,166.45,3.33]
[1752463763525,521.59264144,166.56,166.45,2.85264144]
[1752463763526,2.85264144,166.53,166.45,2.85264144]
[1752463763722,6.0038,166.51,166.46,3.33]
[1752463763930,178.18,166.52,166.46,3.33]
[1752463765026,6.0036,166.51,166.46,9.3351]
[1752463765229,2.85264144,166.55,166.47,6.18264144]
[1752463765429,518.74,166.56,166.48,3.33]
[1752463765629,178.16,166.55,166.48,3.33]
[1752463765925,178.16,166.55,166.49,2.85264144]
[1752463766128,178.16,166.54,166.5,3.33]
[1752463766425,178.16,166.53,166.5,3.33]
[1752463766622,178.16,166.53,166.52,3.33]
[1752463769131,518.74,166.56,166.52,3.33]
[1752463769431,178.14,166.55,166.52,3.33]
[1752463769625,178.14,166.55,166.54,3.33]
[1752463770429,178.12,166.55,166.54,3.33]
[1752463772931,178.1,166.55,166.54,3.33]
[1752463773236,6.0021,166.55,166.54,3.33]
[1752463773433,184.1021,166.55,166.54,3.33]
[1752463774236,6.003,166.53,166.5,3.41]
[1752463774538,178.1,166.52,166.5,3.41]
[1752463775234,184.1032,166.52,166.5,3.41]
[1752463775437,178.1,166.52,166.48,3.41]
[1752463776031,184.1034,166.52,166.48,3.41]
[1752463776334,178.1,166.52,166.48,3.41]
[1752463776534,6.0037,166.51,166.48,3.41]
[1752463776936,178.1,166.52,166.48,3.41]
[1752463777138,6.0042,166.49,166.48,3.41]
[1752463777337,178.1,166.52,166.48,3.41]
[1752463778037,6.0042,166.49,166.48,3.41]
[1752463779240,184.0642,166.49,166.48,3.41]
[1752463780540,178.06,166.49,166.41,2.85264144]
[1752463780833,2.85264144,166.48,166.39,4.89286971]
[1752463781039,6.0066,166.43,166.4,2.85264144]
[1752463781239,6.0066,166.43,166.41,3.41]
[1752463781436,178.04,166.45,166.41,3.41]
[1752463782237,6.0068,166.42,166.41,3.41]
[1752463785348,178.04,166.45,166.42,3.41]
[1752463785540,178.04,166.45,166.39,7.74551115]
[1752463785845,6.0071,166.41,166.4,3.41]
[1752463786634,6.0079,166.39,166.38,8.30286971]
[1752463786833,6.0079,166.39,166.38,3.41]
[1752463787244,6.0079,166.39,166.38,8.30286971]
[1752463788545,6.0079,166.39,166.38,3.41]
[1752463789139,2.85264144,166.43,166.38,3.41]
[1752463790241,6.0079,166.39,166.38,3.41]
[1752463793749,178.06,166.43,166.38,3.41]
[1752463794948,6.0077,166.4,166.38,3.41]
[1752463795338,178.06,166.43,166.38,3.41]
[1752463795743,2.85264144,166.44,166.38,3.41]
[1752463795948,180.89264144,166.44,166.38,3.41]
[1752463796148,6.0077,166.4,166.38,3.41]
[1752463796544,180.89264144,166.44,166.38,3.41]
[1752463797448,6.0077,166.4,166.38,3.41]
[1752463797842,6.0078,166.39,166.38,3.41]
[1752463799344,178.04,166.43,166.38,3.41]
[1752463799743,6.0076,166.4,166.38,3.41]
[1752463799952,178.04,166.43,166.38,3.41]
[1752463800147,2.85264144,166.42,166.38,3.41]
[1752463800345,178.04,166.43,166.38,3.41]
[1752463800845,519.12,166.46,166.38,3.41]
[1752463801051,2.85264144,166.44,166.38,3.41]
[1752463801352,6.0073,166.41,166.38,3.41]
[1752463802447,2.85264144,166.4,166.31,3.47]
[1752463802751,356.04,166.39,166.33,3.47]
[1752463803448,6.0082,166.38,166.33,6.0098]
[1752463803646,356.04,166.39,166.34,3.47]
[1752463803844,362.0479,166.39,166.34,9.4794]
[1752463804153,6.0079,166.39,166.37,3.47]
[1752463804352,178.02,166.41,166.37,3.47]
[1752463805153,6.0076,166.4,166.37,3.47]
[1752463805949,6.0073,166.41,166.37,3.47]
[1752463806247,178.02,166.41,166.39,3.47]
[1752463807654,178.0,166.44,166.4,2.85264144]
[1752463807853,184.0062,166.44,166.41,3.47]
[1752463808254,178.0,166.44,166.41,3.47]
[1752463808852,178.0,166.44,166.42,3.47]
[1752463809247,6.0067,166.43,166.42,3.47]
[1752463809448,177.98,166.43,166.42,3.47]
[1752463809755,177.98,166.45,166.43,3.47]
[1752463811555,525.1256,166.46,166.43,3.47]
[1752463811760,177.96,166.47,166.45,3.47]
[1752463812152,177.96,166.48,166.45,3.47]
[1752463812556,2.85264144,166.55,166.47,2.85264144]
[1752463812859,177.96,166.54,166.48,3.47]
[1752463813052,6.0038,166.51,166.48,3.47]
[1752463813255,177.96,166.5,166.48,3.47]
[1752463815360,177.96,166.5,166.49,3.47]
[1752463815564,177.92,166.52,166.49,3.47]
[1752463815958,177.92,166.52,166.5,3.47]
[1752463816150,183.9233,166.52,166.5,3.47]
[1752463816355,177.92,166.52,166.51,3.47]
[1752463816757,6.0028,166.54,166.52,3.47]
[1752463816958,177.92,166.53,166.52,3.47]
[1752463817648,177.9,166.53,166.52,3.47]
[1752463817852,2.85264144,166.56,166.5,3.47]
[1752463818051,2.85264144,166.56,166.51,3.47]
[1752463818252,177.9,166.55,166.51,3.47]
[1752463818453,6.0032,166.52,166.51,3.47]
[1752463818652,183.9032,166.52,166.51,3.47]
[1752463819162,2.85264144,166.57,166.51,3.47]
[1752463819362,177.9,166.56,166.52,3.47]
[1752463819656,180.75264144,166.56,166.53,3.47]
[1752463820255,180.75264144,166.56,166.5,3.47]
[1752463820460,177.9,166.56,166.5,3.47]
[1752463820657,6.0016,166.57,166.51,8.85604144]
[1752463820957,6.0016,166.57,166.52,3.47]
[1752463821157,519.14,166.58,166.54,3.47]
[1752463821359,697.0,166.58,166.54,3.47]
[1752463821766,518.96,166.66,166.57,2.85264144]
[1752463821955,5.9995,166.63,166.58,3.47]
[1752463822158,520.00469995,166.66,166.58,3.47]
[1752463822361,183.3,166.65,166.58,3.47]
[1752463822657,2.85264144,166.62,166.54,6.32264144]
[1752463822857,2.85264144,166.61,166.49,3.47]
[1752463823069,2.85264144,166.61,166.52,3.47]
[1752463823070,371.32,166.6,166.52,3.47]
[1752463823265,2.85264144,166.59,166.52,3.47]
[1752463823460,371.32,166.6,166.52,3.47]
[1752463823661,6.0018,166.56,166.52,3.47]
[1752463823965,375.81264144,166.55,166.48,3.47]
[1752463824163,2.85264144,166.53,166.48,3.47]
[1752463824562,2.85264144,166.52,166.43,2.85264144]
[1752463824768,8.85624144,166.51,166.44,3.47]
[1752463825063,2.85264144,166.49,166.45,3.47]
[1752463825265,2.85264144,166.49,166.42,3.47]